[Event "LASS Vårturneringar 2018"]
[Site "Linköping, Sweden"]
[Date "2018.05.12"]
[Round "6.4"]
[White "Tiger-Norqvist, Axel"]
[Black "Olsson, Simon"]
[Result "1/2-1/2"]
[TimeControl "90 min + 30 sec/move + 30 min/40 moves"]
[WhiteElo "2146"]
[BlackElo "2110"]

1. e4 {[%clk 01:30:57]} {[%emt 00:00:02]} c5 {[%clk 01:31:00]} 2. Nf3 {[%clk
01:31:19]} {[%emt 00:00:09]} Nc6 {[%clk 01:31:07]} {[%emt 00:00:23]} 3. c3
{[%clk 01:31:38]} {[%emt 00:00:10]} d5 {[%clk 01:31:11]} {[%emt 00:00:26]} 4.
exd5 {[%clk 01:32:01]} {[%emt 00:00:07]} Qxd5 {[%clk 01:31:39]} {[%emt
00:00:02]} 5. d4 {[%clk 01:32:19]} {[%emt 00:00:12]} Bg4 {[%clk 01:31:45]}
{[%emt 00:00:24]} 6. Be2 {[%clk 01:32:34]} {[%emt 00:00:16]} e6 {[%clk
01:31:42]} {[%emt 00:00:33]} 7. Be3 {[%clk 01:29:53]} {[%emt 00:03:10]} cxd4
{[%clk 01:30:34]} {[%emt 00:01:39]} 8. cxd4 {[%clk 01:30:08]} {[%emt 00:00:15]}
Nf6 {[%clk 01:30:39]} {[%emt 00:00:25]} 9. O-O {[%clk 01:28:53]} {[%emt
00:01:44]} Bb4 {[%clk 01:30:08]} {[%emt 00:01:02]} 10. h3 {[%clk 01:26:17]}
{[%emt 00:03:05]} Bh5 {[%clk 01:28:41]} {[%emt 00:01:58]} 11. a3 {[%clk
01:21:49]} {[%emt 00:04:59]} Ba5 {[%clk 01:27:53]} {[%emt 00:01:17]} 12. b4
{[%clk 01:19:03]} {[%emt 00:03:16]} Bb6 {[%clk 01:27:45]} {[%emt 00:00:37]} 13.
Nc3 {[%clk 01:17:46]} {[%emt 00:01:47]} Qd6 {[%clk 01:27:53]} {[%emt 00:00:22]}
14. Nb5 {[%clk 00:55:32]} {[%emt 00:22:44]} Qd8 {[%clk 01:26:27]} {[%emt
00:01:57]} 15. Bf4 {[%clk 00:43:19]} {[%emt 00:12:43]} O-O {[%clk 01:26:01]}
{[%emt 00:00:56]} 16. Bd6 {[%clk 00:40:15]} {[%emt 00:03:34]} Re8 {[%clk
01:24:59]} {[%emt 00:01:32]} 17. Bc5 {[%clk 00:40:24]} {[%emt 00:00:21]} Bc7
{[%clk 01:22:01]} {[%emt 00:03:28]} 18. Nxc7 {[%clk 00:40:29]} {[%emt
00:00:24]} Qxc7 {[%clk 01:22:30]} {[%emt 00:00:01]} 19. b5 {[%clk 00:38:05]}
{[%emt 00:02:55]} Ne7 {[%clk 01:19:26]} {[%emt 00:03:34]} 20. Ne5 {[%clk
00:32:38]} {[%emt 00:05:57]} Bxe2 {[%clk 01:18:22]} {[%emt 00:01:34]} 21. Qxe2
{[%clk 00:33:03]} {[%emt 00:00:06]} Nd7 {[%clk 01:02:46]} {[%emt 00:16:05]} 22.
Rfc1 {[%clk 00:32:10]} {[%emt 00:01:23]} Nxe5 {[%clk 01:01:35]} {[%emt
00:01:42]} 23. dxe5 {[%clk 00:31:43]} {[%emt 00:00:56]} Qd7 {[%clk 01:01:44]}
{[%emt 00:00:21]} 24. Bxe7 {[%clk 00:22:12]} {[%emt 00:10:00]} Qxe7 {[%clk
01:01:18]} {[%emt 00:00:56]} 25. Qe3 {[%clk 00:18:08]} {[%emt 00:04:34]} a6
{[%clk 00:57:58]} {[%emt 00:03:50]} 26. a4 {[%clk 00:17:07]} {[%emt 00:01:31]}
axb5 {[%clk 00:56:10]} {[%emt 00:02:18]} 27. axb5 {[%clk 00:17:31]} {[%emt
00:00:07]} Rxa1 {[%clk 00:56:16]} {[%emt 00:00:24]} 28. Rxa1 {[%clk 00:17:39]}
{[%emt 00:00:21]} Qd7 {[%clk 00:56:40]} {[%emt 00:00:06]} 29. b6 {[%clk
00:17:26]} {[%emt 00:00:44]} Rc8 {[%clk 00:54:09]} {[%emt 00:03:01]} 30. Qe4
{[%clk 00:15:02]} {[%emt 00:02:54]} g6 {[%clk 00:52:31]} {[%emt 00:02:08]} 31.
Ra7 {[%clk 00:14:20]} {[%emt 00:01:13]} Rc6 {[%clk 00:52:25]} {[%emt 00:00:35]}
32. Ra8+ {[%clk 00:13:35]} {[%emt 00:01:15]} Rc8 {[%clk 00:52:51]} {[%emt
00:00:05]} 33. Rxc8+ {[%clk 00:12:55]} {[%emt 00:01:11]} Qxc8 {[%emt 00:00:03]}
34. Qd4 {[%clk 00:13:12]} {[%emt 00:00:10]} Kf8 {[%clk 00:52:25]} {[%emt
00:01:25]} 35. Qh4 {[%clk 00:11:35]} {[%emt 00:02:07]} Ke8 {[%clk 00:50:51]}
{[%emt 00:02:05]} 36. Qa4+ {[%clk 00:10:23]} {[%emt 00:01:42]} 1/2-1/2

[Event "LASS Vårturneringar 2018"]
[Site "Linköping, Sweden"]
[Date "2018.05.12"]
[Round "6.7"]
[White "Sahlström, Alex"]
[Black "Karlsson, Henrik"]
[Result "0-1"]
[TimeControl "90 min + 30 sec/move + 30 min/40 moves"]
[WhiteElo "1463"]
[BlackElo "1699"]

1. e4 {[%clk 01:30:55]} {[%emt 00:00:03]} e6 {[%clk 01:30:54]} {[%emt
00:00:07]} 2. d4 {[%clk 01:31:00]} {[%emt 00:00:25]} d5 {[%clk 01:31:19]}
{[%emt 00:00:05]} 3. Nd2 {[%clk 01:31:25]} {[%emt 00:00:05]} Nf6 {[%clk
01:31:44]} {[%emt 00:00:05]} 4. e5 {[%clk 01:31:50]} {[%emt 00:00:05]} Nfd7
{[%clk 01:32:07]} {[%emt 00:00:07]} 5. Bd3 {[%clk 01:32:04]} {[%emt 00:00:16]}
c5 {[%clk 01:32:32]} {[%emt 00:00:05]} 6. c3 {[%clk 01:32:30]} {[%emt
00:00:04]} Nc6 {[%clk 01:32:58]} {[%emt 00:00:04]} 7. Ne2 {[%clk 01:32:18]}
{[%emt 00:00:42]} f6 {[%clk 01:32:53]} {[%emt 00:00:35]} 8. f4 {[%clk
01:28:13]} {[%emt 00:04:35]} fxe5 {[%clk 01:28:29]} {[%emt 00:04:54]} 9. fxe5
{[%clk 01:26:37]} {[%emt 00:02:07]} Qh4+ {[%clk 01:28:27]} {[%emt 00:00:31]} 10.
Ng3 {[%clk 01:24:09]} {[%emt 00:02:58]} cxd4 {[%clk 01:28:20]} {[%emt
00:00:38]} 11. Nf3 {[%clk 01:24:13]} {[%emt 00:00:25]} Qg4 {[%clk 01:28:20]}
{[%emt 00:00:29]} 12. cxd4 {[%clk 01:24:29]} {[%emt 00:00:15]} Bb4+ {[%clk
01:16:36]} {[%emt 00:12:15]} 13. Bd2 {[%clk 01:21:26]} {[%emt 00:03:33]} Nxd4
{[%clk 01:13:09]} {[%emt 00:03:57]} 14. Nxd4 {[%clk 01:01:04]} {[%emt
00:20:52]} Qxd4 {[%clk 01:11:22]} {[%emt 00:02:17]} 15. Qh5+ {[%clk 00:59:23]}
{[%emt 00:02:10]} Kd8 {[%clk 01:11:03]} {[%emt 00:00:49]} 16. Qg5+ {[%clk
00:57:00]} {[%emt 00:02:54]} Kc7 {[%clk 01:06:38]} {[%emt 00:04:55]} 17. Qxg7
{[%clk 00:53:31]} {[%emt 00:03:59]} Bxd2+ {[%clk 01:02:53]} {[%emt 00:04:15]}
18. Kxd2 {[%clk 00:53:12]} {[%emt 00:00:48]} Qxb2+ {[%clk 01:02:52]} {[%emt
00:00:31]} 19. Bc2 {[%clk 00:49:53]} {[%emt 00:03:49]} Qxe5 {[%clk 01:02:39]}
{[%emt 00:00:44]} 20. Qg4 {[%clk 00:48:52]} {[%emt 00:01:31]} Nf6 {[%clk
00:58:25]} {[%emt 00:04:44]} 21. Qg7+ {[%clk 00:48:14]} {[%emt 00:01:07]} Bd7
{[%clk 00:55:56]} {[%emt 00:03:00]} 22. Rac1 {[%clk 00:48:04]} {[%emt
00:00:40]} Kd6 {[%clk 00:54:12]} {[%emt 00:02:14]} 23. Ba4 {[%clk 00:47:28]}
{[%emt 00:01:06]} Qd4+ {[%clk 00:51:45]} {[%emt 00:02:56]} 24. Ke2 {[%clk
00:47:03]} {[%emt 00:00:56]} Qg4+ {[%clk 00:51:41]} {[%emt 00:00:33]} 25. Qxg4
{[%clk 00:46:11]} {[%emt 00:01:21]} Nxg4 {[%clk 00:52:06]} {[%emt 00:00:06]} 26.
Ne4+ {[%clk 00:46:15]} {[%emt 00:00:26]} dxe4 {[%clk 00:35:32]} {[%emt
00:17:05]} 27. Rhd1+ {[%clk 00:45:31]} {[%emt 00:01:13]} Ke5 {[%clk 00:35:15]}
{[%emt 00:00:47]} 28. Rc5+ {[%clk 00:44:07]} {[%emt 00:01:54]} Kf6 {[%clk
00:35:04]} {[%emt 00:00:41]} 29. Rxd7 {[%clk 00:42:44]} {[%emt 00:01:54]} b6
{[%clk 00:29:08]} {[%emt 00:06:27]} 30. Rc4 {[%clk 00:38:08]} {[%emt 00:05:06]}
Ne5 {[%clk 00:28:22]} {[%emt 00:01:15]} 31. Rxe4 {[%clk 00:37:58]} {[%emt
00:00:40]} Nxd7 {[%clk 00:28:44]} {[%emt 00:00:09]} 32. Bxd7 {[%clk 00:38:22]}
{[%emt 00:00:05]} Rad8 {[%clk 00:28:29]} {[%emt 00:00:46]} 33. Bxe6 {[%clk
00:38:00]} {[%emt 00:00:51]} Rhe8 {[%clk 00:28:51]} {[%emt 00:00:08]} 34. Bd5
{[%clk 00:37:58]} {[%emt 00:00:32]} Rxe4+ {[%clk 00:27:20]} {[%emt 00:02:01]}
35. Bxe4 {[%clk 00:38:19]} {[%emt 00:00:08]} h6 {[%clk 00:25:39]} {[%emt
00:02:11]} 36. Bd3 {[%clk 00:38:08]} {[%emt 00:00:42]} Ke5 {[%clk 00:25:22]}
{[%emt 00:00:47]} 37. Kd2 {[%clk 00:38:23]} {[%emt 00:00:15]} Kd4 {[%clk
00:24:57]} {[%emt 00:00:55]} 38. Kc2 {[%clk 00:38:26]} {[%emt 00:00:26]} Rc8+
{[%clk 00:24:02]} {[%emt 00:01:26]} 39. Kd2 {[%clk 00:38:50]} {[%emt 00:00:06]}
Rc3 {[%clk 00:21:37]} {[%emt 00:02:55]} 40. Bc2 {[%clk 00:38:31]} {[%emt
00:00:50]} b5 {[%clk 00:20:54]} {[%emt 00:01:13]} 41. Kc1 {[%clk 00:38:41]}
{[%emt 00:00:20]} Ke3 {[%clk 00:18:57]} {[%emt 00:02:28]} 42. Kb2 {[%clk
00:38:49]} {[%emt 00:00:22]} b4 {[%clk 00:19:22]} {[%emt 00:00:05]} 43. Bd1
{[%clk 00:38:17]} {[%emt 00:01:01]} Kf2 {[%clk 00:12:50]} {[%emt 00:07:02]} 44.
Bf3 {[%clk 00:38:18]} {[%emt 00:00:29]} Rxf3 {[%clk 00:12:11]} {[%emt
00:01:09]} 45. gxf3 {[%clk 00:38:32]} {[%emt 00:00:16]} Kxf3 {[%clk 00:12:37]}
{[%emt 00:00:05]} 46. Kb3 {[%clk 00:38:50]} {[%emt 00:00:11]} h5 {[%clk
00:12:58]} {[%emt 00:00:08]} 47. Kxb4 {[%clk 00:39:09]} {[%emt 00:00:12]} h4
{[%clk 00:13:23]} {[%emt 00:00:04]} 48. Ka5 {[%clk 00:38:50]} {[%emt 00:00:49]}
h3 {[%clk 00:13:43]} {[%emt 00:00:10]} 49. Ka6 {[%clk 00:39:09]} {[%emt
00:00:11]} Kg2 {[%clk 00:14:08]} {[%emt 00:00:05]} 50. Kxa7 {[%clk 00:39:33]}
{[%emt 00:00:06]} Kxh2 {[%clk 00:14:32]} {[%emt 00:00:05]} 51. Kb8 {[%clk
00:39:49]} {[%emt 00:00:14]} Kg3 {[%clk 00:14:54]} {[%emt 00:00:09]} 52. a4
{[%clk 00:39:55]} {[%emt 00:00:24]} h2 {[%clk 00:15:20]} {[%emt 00:00:04]} 53.
a5 {[%clk 00:40:21]} {[%emt 00:00:05]} h1=Q {[%clk 00:15:40]} {[%emt 00:00:10]}
54. a6 {[%clk 00:40:44]} {[%emt 00:00:07]} Qh8+ {[%clk 00:14:19]} {[%emt
00:01:50]} 55. Kb7 {[%clk 00:40:36]} {[%emt 00:00:39]} Qg7+ {[%clk 00:14:43]}
{[%emt 00:00:06]} 56. Kb8 {[%clk 00:40:16]} {[%emt 00:00:50]} Qe5+ {[%clk
00:13:45]} {[%emt 00:01:28]} 57. Ka8 {[%clk 00:40:18]} {[%emt 00:00:28]} Qc5
{[%clk 00:13:34]} {[%emt 00:00:41]} 58. Kb7 {[%clk 00:40:13]} {[%emt 00:00:35]}
Qb5+ {[%clk 00:13:37]} {[%emt 00:00:26]} 59. Ka7 {[%clk 00:39:59]} {[%emt
00:00:45]} Kf4 {[%clk 00:13:58]} {[%emt 00:00:09]} 0-1

[Event "LASS Vårturneringar 2018"]
[Site "Linköping, Sweden"]
[Date "2018.05.12"]
[Round "6.3"]
[White "Qwarfort, Fredrik"]
[Black "Olsson, Magnus"]
[Result "1-0"]
[TimeControl "90 min + 30 sec/move + 30 min/40 moves"]
[WhiteElo "1894"]
[BlackElo "1677"]

1. d4 {[%clk 01:30:58]} d5 {[%clk 01:30:46]} {[%emt 00:00:14]} 2. c4 {[%clk
01:31:21]} {[%emt 00:00:07]} dxc4 {[%clk 01:31:02]} {[%emt 00:00:14]} 3. Nf3
{[%clk 01:31:21]} {[%emt 00:00:30]} Nd7 {[%clk 01:30:36]} {[%emt 00:00:56]} 4.
e3 {[%clk 01:28:41]} {[%emt 00:03:10]} e6 {[%clk 01:29:29]} {[%emt 00:01:37]} 5.
Bxc4 {[%clk 01:28:43]} {[%emt 00:00:27]} Ngf6 {[%clk 01:29:50]} {[%emt
00:00:09]} 6. O-O {[%clk 01:28:54]} {[%emt 00:00:19]} c5 {[%clk 01:29:59]}
{[%emt 00:00:21]} 7. Qe2 {[%clk 01:26:25]} {[%emt 00:02:59]} Be7 {[%clk
01:29:30]} {[%emt 00:00:59]} 8. Nc3 {[%clk 01:25:54]} {[%emt 00:01:01]} a6
{[%clk 01:29:34]} {[%emt 00:00:27]} 9. a4 {[%clk 01:25:38]} {[%emt 00:00:47]}
O-O {[%clk 01:29:15]} {[%emt 00:00:48]} 10. Rd1 {[%clk 01:23:12]} {[%emt
00:02:55]} cxd4 {[%clk 01:28:43]} {[%emt 00:01:02]} 11. Nxd4 {[%clk 01:23:20]}
{[%emt 00:00:23]} Qb6 {[%clk 01:27:26]} {[%emt 00:01:47]} 12. a5 {[%clk
01:21:12]} {[%emt 00:02:38]} Qa7 {[%clk 01:25:25]} {[%emt 00:02:31]} 13. e4
{[%clk 01:09:35]} {[%emt 00:12:07]} Ne5 {[%clk 01:22:08]} {[%emt 00:03:47]} 14.
Be3 {[%clk 01:03:39]} {[%emt 00:06:25]} Nxc4 {[%clk 01:19:14]} {[%emt
00:03:23]} 15. Nc6 {[%clk 00:58:20]} {[%emt 00:05:49]} Nxe3 {[%clk 01:18:19]}
{[%emt 00:01:26]} 16. Nxa7 {[%clk 00:58:36]} {[%emt 00:00:14]} Nxd1 {[%clk
01:18:42]} {[%emt 00:00:07]} 17. Nxc8 {[%clk 00:58:14]} {[%emt 00:00:52]} Raxc8
{[%clk 01:18:36]} {[%emt 00:00:36]} 18. Rxd1 {[%clk 00:54:49]} {[%emt
00:03:54]} Rfd8 {[%clk 01:18:21]} {[%emt 00:00:46]} 19. f3 {[%clk 00:47:24]}
{[%emt 00:07:55]} Bc5+ {[%clk 01:18:15]} {[%emt 00:00:36]} 20. Kf1 {[%clk
00:47:40]} {[%emt 00:00:14]} Bb4 {[%clk 01:18:27]} {[%emt 00:00:18]} 21. Rxd8+
{[%clk 00:44:40]} {[%emt 00:03:30]} Rxd8 {[%clk 01:17:27]} {[%emt 00:01:30]} 22.
Qc4 {[%clk 00:44:57]} {[%emt 00:00:13]} Bxa5 {[%clk 01:17:25]} {[%emt
00:00:32]} 23. b4 {[%clk 00:45:09]} {[%emt 00:00:18]} Bb6 {[%clk 01:16:33]}
{[%emt 00:01:21]} 24. Na4 {[%clk 00:41:49]} {[%emt 00:03:50]} Rd4 {[%clk
01:14:09]} {[%emt 00:02:54]} 25. Qc8+ {[%clk 00:40:14]} {[%emt 00:02:06]} Bd8
{[%clk 01:14:25]} {[%emt 00:00:14]} 26. Nc5 {[%clk 00:38:44]} {[%emt 00:02:00]}
b6 {[%clk 01:14:00]} {[%emt 00:00:55]} 27. Nb7 {[%clk 00:37:44]} {[%emt
00:01:30]} Rd1+ {[%clk 01:13:28]} {[%emt 00:01:02]} 28. Ke2 {[%clk 00:37:57]}
{[%emt 00:00:17]} 1-0

[Event "LASS Vårturneringar 2018"]
[Site "Linköping, Sweden"]
[Date "2018.05.12"]
[Round "6.2"]
[White "Nörager, Mattias"]
[Black "Andersson, Görgen"]
[Result "*"]
[TimeControl "90 min + 30 sec/move + 30 min/40 moves"]
[WhiteElo "1706"]
[BlackElo "1908"]

1. f4 {[%clk 00:52:11]} d5 {[%clk 00:46:47]} 2. Nf3 {[%clk 00:52:11]} g6 {[%clk
00:46:47]} 3. e3 {[%clk 00:52:11]} Bg7 {[%clk 00:46:47]} 4. Be2 {[%clk
00:52:11]} Nh6 {[%clk 00:46:47]} 5. O-O {[%clk 00:52:11]} O-O {[%clk 00:46:47]}
6. Nc3 {[%clk 00:52:11]} b6 {[%clk 00:46:47]} 7. d4 {[%clk 00:52:11]} Bb7
{[%clk 00:46:47]} 8. b3 {[%clk 00:52:11]} Nf5 {[%clk 00:46:47]} 9. g4 {[%clk
00:52:11]} Nd6 {[%clk 00:46:47]} 10. Bd3 {[%clk 00:52:11]} Nd7 {[%clk
00:46:47]} 11. a4 {[%clk 00:52:11]} Nf6 {[%clk 00:46:47]} 12. Ne5 {[%clk
00:52:11]} Nfe4 {[%clk 00:46:47]} 13. Bb2 {[%clk 00:52:11]} f6 {[%clk
00:46:47]} 14. Bxe4 {[%clk 00:52:11]} Nxe4 {[%clk 00:46:47]} 15. Nd3 {[%clk
00:52:11]} Qd7 {[%clk 00:46:47]} 16. Nxe4 {[%clk 00:52:11]} dxe4 {[%clk
00:46:47]} 17. Nf2 {[%clk 00:52:11]} Rae8 {[%clk 00:46:47]} 18. a5 {[%clk
00:52:11]} e5 {[%clk 00:46:47]} 19. dxe5 {[%clk 00:52:11]} Qxd1 {[%clk
00:46:47]} 20. Rfxd1 {[%clk 00:52:11]} fxe5 {[%clk 00:46:47]} 21. axb6 {[%clk
00:52:11]} exf4 {[%clk 00:46:47]} 22. Bxg7 {[%clk 00:52:11]} Kxg7 {[%clk
00:46:47]} 23. Rxa7 {[%clk 00:52:11]} fxe3 {[%clk 00:46:47]} 24. Nh1 {[%clk
00:52:11]} Rd8 {[%clk 00:46:47]} 25. Rxd8 {[%clk 00:52:11]} Rxd8 {[%clk
00:46:47]} 26. Rxb7 {[%clk 00:52:11]} Rd1+ {[%clk 00:46:47]} 27. Kg2 {[%clk
00:52:11]} e2 {[%clk 00:46:47]} 28. bxc7 {[%clk 00:52:11]} e1=Q {[%clk
00:46:47]} 29. c8=Q+ {[%clk 00:52:11]} Kh6 {[%clk 00:46:47]} 30. Qf8 {[%clk
00:52:11]} Kg5 {[%clk 00:46:47]} 1-0

[ePGN "0.1;DGT LiveChess/2.1"]

[Event "LASS Vårturneringar 2018"]
[Site "Linköping, Sweden"]
[Date "2018.05.13"]
[Round "7.1"]
[White "Orci, Istvan"]
[Black "Nörager, Mattias"]
[Result "1/2-1/2"]
[TimeControl "90 min + 30 sec/move + 30 min/40 moves"]
[WhiteElo "1500"]
[BlackElo "1706"]

1. e4 {[%clk 01:30:55]} {[%emt 00:00:04]} e5 {[%clk 01:30:28]} {[%emt
00:00:33]} 2. Nf3 {[%clk 01:31:19]} {[%emt 00:00:06]} Nc6 {[%clk 01:30:52]}
{[%emt 00:00:07]} 3. Bc4 {[%clk 01:31:41]} {[%emt 00:00:08]} Nf6 {[%clk
01:31:15]} {[%emt 00:00:06]} 4. Ng5 {[%clk 01:31:33]} {[%emt 00:00:38]} d5
{[%clk 01:31:33]} {[%emt 00:00:12]} 5. exd5 {[%clk 01:31:42]} {[%emt 00:00:10]}
Na5 {[%clk 01:31:48]} {[%emt 00:00:25]} 6. Bb5+ {[%clk 01:31:58]} {[%emt
00:00:14]} c6 {[%clk 01:32:11]} {[%emt 00:00:07]} 7. dxc6 {[%clk 01:32:23]}
{[%emt 00:00:05]} bxc6 {[%clk 01:32:32]} {[%emt 00:00:10]} 8. Bd3 {[%clk
01:32:27]} {[%emt 00:00:26]} h6 {[%clk 01:31:51]} {[%emt 00:01:11]} 9. Nh3
{[%clk 01:27:25]} {[%emt 00:05:31]} Bxh3 {[%clk 01:31:36]} {[%emt 00:00:46]} 10.
gxh3 {[%clk 01:27:47]} {[%emt 00:00:07]} Qd7 {[%clk 01:31:02]} {[%emt
00:01:04]} 11. Qf3 {[%clk 01:25:39]} {[%emt 00:02:37]} Nb7 {[%clk 01:25:57]}
{[%emt 00:05:37]} 12. Nc3 {[%clk 01:05:19]} {[%emt 00:20:50]} Rd8 {[%clk
01:24:46]} {[%emt 00:01:40]} 13. Be4 {[%clk 00:52:42]} {[%emt 00:13:07]} Nxe4
{[%clk 01:21:34]} {[%emt 00:03:41]} 14. Nxe4 {[%clk 00:51:58]} {[%emt
00:01:15]} f5 {[%clk 01:21:15]} {[%emt 00:00:49]} 15. Qh5+ {[%clk 00:49:03]}
{[%emt 00:03:25]} Qf7 {[%clk 01:21:25]} {[%emt 00:00:19]} 16. Qxf7+ {[%clk
00:48:50]} {[%emt 00:00:44]} Kxf7 {[%clk 01:21:43]} {[%emt 00:00:12]} 17. Ng3
{[%clk 00:48:06]} {[%emt 00:01:13]} Ke6 {[%clk 01:19:39]} {[%emt 00:02:34]} 18.
d3 {[%clk 00:47:05]} {[%emt 00:01:31]} Bb4+ {[%clk 01:17:04]} {[%emt 00:03:04]}
19. Ke2 {[%clk 00:45:07]} {[%emt 00:02:28]} Rhf8 {[%clk 01:16:39]} {[%emt
00:00:56]} 20. c3 {[%clk 00:40:25]} {[%emt 00:05:12]} Be7 {[%clk 01:16:53]}
{[%emt 00:00:16]} 21. b4 {[%clk 00:40:02]} {[%emt 00:00:54]} Nd6 {[%clk
01:15:04]} {[%emt 00:02:19]} 22. f3 {[%clk 00:29:31]} {[%emt 00:11:00]} Rd7
{[%clk 01:12:20]} {[%emt 00:03:15]} 23. Bb2 {[%clk 00:24:24]} {[%emt 00:05:36]}
Rfd8 {[%clk 01:10:34]} {[%emt 00:02:16]} 24. Rhd1 {[%clk 00:19:50]} {[%emt
00:05:04]} a5 {[%clk 01:09:46]} {[%emt 00:01:19]} 25. a3 {[%clk 00:16:58]}
{[%emt 00:03:22]} a4 {[%clk 01:02:46]} {[%emt 00:07:30]} 26. c4 {[%clk
00:12:34]} {[%emt 00:04:54]} Nf7 {[%clk 00:59:51]} {[%emt 00:03:24]} 27. Nh1
{[%clk 00:11:25]} {[%emt 00:01:39]} Bg5 {[%clk 00:58:36]} {[%emt 00:01:45]} 28.
Nf2 {[%clk 00:10:34]} {[%emt 00:01:21]} Bh4 {[%clk 00:56:55]} {[%emt 00:02:12]}
29. Rac1 {[%clk 00:04:40]} {[%emt 00:06:25]} Bxf2 {[%clk 00:57:02]} {[%emt
00:00:23]} 30. Kxf2 {[%emt 00:00:03]} Rxd3 {[%emt 00:00:17]} 31. Rxd3 {[%clk
00:05:04]} {[%emt 00:00:07]} Rxd3 {[%clk 00:57:53]} {[%emt 00:00:18]} 32. Ke2
{[%clk 00:04:53]} {[%emt 00:00:41]} Rb3 {[%clk 00:58:09]} {[%emt 00:00:14]} 33.
Rc2 {[%clk 00:03:56]} {[%emt 00:01:27]} Ng5 {[%clk 00:58:30]} {[%emt 00:00:08]}
34. f4 {[%clk 00:03:02]} {[%emt 00:01:23]} Nxh3 {[%clk 00:58:52]} {[%emt
00:00:11]} 35. fxe5 {[%clk 00:03:11]} {[%emt 00:00:21]} Nf4+ {[%clk 00:59:15]}
{[%emt 00:00:05]} 36. Kd2 {[%clk 00:02:58]} {[%emt 00:00:44]} Nd3 {[%clk
00:59:10]} {[%emt 00:00:35]} 37. Bc3 {[%clk 00:01:23]} {[%emt 00:02:06]} Nxe5
{[%clk 00:58:27]} {[%emt 00:01:13]} 38. Bxe5 {[%clk 00:01:13]} {[%emt
00:00:39]} Kxe5 {[%clk 00:58:50]} {[%emt 00:00:07]} 39. b5 {[%clk 00:00:58]}
{[%emt 00:00:45]} Kd6 {[%clk 00:58:54]} {[%emt 00:00:25]} 40. c5+ {[%clk
00:01:14]} {[%emt 00:00:15]} Kc7 {[%clk 00:57:14]} {[%emt 00:02:10]} 41. b6+
{[%clk 00:00:56]} {[%emt 00:00:48]} Kb7 {[%clk 00:57:28]} {[%emt 00:00:16]} 42.
Rc3 {[%clk 00:27:03]} {[%emt 00:04:23]} Rb2+ {[%clk 01:24:24]} {[%emt
00:03:35]} 43. Rc2 {[%clk 00:26:05]} {[%emt 00:01:26]} Rb3 {[%clk 01:24:29]}
{[%emt 00:00:25]} 44. Rc3 {[%clk 00:25:42]} {[%emt 00:00:52]} Rxc3 {[%clk
01:24:40]} {[%emt 00:00:21]} 45. Kxc3 {[%clk 00:26:08]} {[%emt 00:00:03]} f4
{[%clk 01:25:03]} {[%emt 00:00:07]} 46. Kd3 {[%clk 00:24:02]} {[%emt 00:02:36]}
Ka6 {[%clk 01:25:13]} {[%emt 00:00:20]} 47. Ke4 {[%clk 00:23:48]} {[%emt
00:00:44]} g5 {[%clk 01:25:31]} {[%emt 00:00:12]} 48. Kf3 {[%clk 00:23:39]}
{[%emt 00:00:39]} Kb7 {[%clk 01:25:49]} {[%emt 00:00:12]} 49. h4 {[%clk
00:20:04]} {[%emt 00:04:05]} Kc8 {[%clk 01:25:55]} {[%emt 00:00:25]} 50. hxg5
{[%clk 00:19:39]} {[%emt 00:00:53]} hxg5 {[%clk 01:26:20]} {[%emt 00:00:07]} 51.
Kg4 {[%clk 00:19:59]} {[%emt 00:00:10]} Kd7 {[%clk 01:26:42]} {[%emt 00:00:09]}
52. Kf3 {[%clk 00:20:08]} {[%emt 00:00:20]} Kd8 {[%clk 01:27:04]} {[%emt
00:00:07]} 53. Ke4 {[%emt 00:00:17]} 1/2-1/2